Cogmind - Beta 13 *** ADVENTURER MODE // 2024.03.30 @ 02:28:25 Player: FAX_MACHINE_v.0210 Result: Destroyed by P-60 Hacker with Shock Rifle Performance ------------- Evolutions (2) 1000 Regions Visited (4) 800 Robots Destroyed (49) 245 Value Destroyed (2369) 2369 Prototype IDs (2) 40 Alien Tech Used (0) 0 Bonus (230) 230 TOTAL SCORE: 4684 Bonus ------- High Alert Combat Kills 30 Entered Garrisons 200 Cogmind --------- Core Integrity 0/550 Matter 212/300 Energy 100/100 System Corruption 17% Temperature Cool (0) Movement Core (350) Ox6 Location -8/Garrison Parts ------- > --- POWER (2) -------- (None) > --- PROPULSION (2) --- (None) > --- UTILITY (4) ------ Large Storage Unit Visual Processing Unit Improved Targeting Computer > --- WEAPON (3) ------- (None) > --- INVENTORY (15) --- Light Treads Aluminum Leg Huge Storage Unit Visual Processing Unit Sensor Array Targeting Computer Hacking Suite Relay Coupler [Hunter] (16) Relay Coupler [Heavy] (13) Recalibrator Peak State ------------ > --- POWER ------------ Ion Engine Improved Ion Engine > --- PROPULSION ------- Light Treads Light Treads > --- UTILITY ---------- Large Storage Unit Visual Processing Unit Improved Signal Interpreter Improved Targeting Computer > --- WEAPON ----------- Light EM Pulse Cannon Light EM Pulse Cannon Heavy Assault Rifle > --- INVENTORY -------- Medium Storage Unit Huge Storage Unit Visual Processing Unit Sensor Array Targeting Computer Hacking Suite Recalibrator Light Assault Rifle Heavy Assault Rifle Grenade Launcher [Rating: 20] Favorites ----------- Power Ion Engine Engine Ion Engine Propulsion Aluminum Leg Treads Light Treads Leg Aluminum Leg Flight Unit VTOL Module Utility Visual Processing Unit Device Improved Terrain Scanner Storage Medium Storage Unit Processor Visual Processing Unit Weapon Heavy Assault Rifle Energy Gun EM Pulse Gun Energy Cannon Light EM Pulse Cannon Ballistic Gun Heavy Assault Rifle Launcher Grenade Launcher Special Weapon Remote Datajack Build | -11 -10 -9 -8 -8 ------- Run | Yrd Mat Mat Mat Gar Slots Evolved 4 | . . 2 2 . Power 1 | . . 1 . . Propulsion . | . . . . . Utility 2 | . . 1 1 . Weapon 1 | . . . 1 . Parts Attached 41 | 7 8 14 4 8 Power 5 | 1 2 2 . . Engine 5 | 1 2 2 . . Core . | . . . . . Reactor . | . . . . . Propulsion 12 | 2 . 6 . 4 Treads 4 | . . 4 . . Leg 6 | 2 . . . 4 Wheel . | . . . . . Hover . | . . . . . Flight 2 | . . 2 . . Utility 12 | 2 5 2 3 . Device 2 | 1 . 1 . . Storage 6 | 1 4 . 1 . Processor 4 | . 1 1 2 . Hackware . | . . . . . Protection . | . . . . . Artifact . | . . . . . Weapon 12 | 2 1 4 1 4 Energy Gun 1 | 1 . . . . Energy Cannon 2 | . . 2 . . Ballistic Gun 7 | 1 1 2 1 2 Ballistic Cannon . | . . . . . Launcher 1 | . . . . 1 Special Weapon 1 | . . . . 1 Impact Weapon . | . . . . . Slashing Weapon . | . . . . . Piercing Weapon . | . . . . . Special Melee Weapon . | . . . . . Unidentified Prototypes . | . . . . . Parts Lost 19 | . 3 2 . 14 Power 3 | . 1 . . 2 Propulsion 5 | . 1 . . 4 Utility 2 | . . 1 . 1 Weapon 9 | . 1 1 . 7 Highest Loss Streak 6 | . 2 1 . 6 To Critical Strikes . | . . . . . Average Slot Usage (%) 92 | . 93 93 100 86 Engine 14 | . 13 18 18 11 Treads 7 | . . 15 18 6 Leg 11 | . 23 . . 9 Flight 1 | . . 6 . . Device 5 | . 9 5 . . Storage 11 | . 14 11 9 9 Processor 15 | . 4 14 27 27 Energy Gun 2 | . 7 . . . Energy Cannon 5 | . . 7 18 7 Ballistic Gun 15 | . 19 14 9 12 Naked Turns . | . . . . . Heaviest Build 43 | 13 18 30 43 43 Greatest Support 40 | 20 20 40 40 40 Greatest Overweight (x) 7 | . 1 3 1 7 Average Overweight (x) . | . . . . 1 Largest Inventory Capacity 15 | 8 15 10 15 15 Average Capacity 10 | 6 8 10 14 15 Most Carried 12 | 8 8 10 11 12 Average Carried 8 | 5 7 8 9 9 Final Capacity 15 | 8 10 10 15 15 Final Carried 10 | 8 7 10 10 10 Class Distribution -------------------- 73% | Mutant 24% | Gunner Dominant Class ---------------- Mutant | -10/Materials Mutant | -9/Materials Gunner | -8/Materials Gunner | -8/Garrison Resources | -11 -10 -9 -8 -8 ----------- Run | Yrd Mat Mat Mat Gar Matter Collected 977 | 222 259 292 . 204 Remotely . | . . . . . Salvage Created 1776 | 226 390 549 . 611 Parts 106 | 23 21 37 . 25 Haulers Intercepted . | . . . . . Recyclers Shooed . | . . . . . Parts Field Recycled . | . . . . . Retrieved Matter . | . . . . . Parts Self-Destructed . | . . . . . Prevented . | . . . . . Kills | -11 -10 -9 -8 -8 ------- Run | Yrd Mat Mat Mat Gar Combat Hostiles Destroyed 35 | . 8 10 . 17 Melee 1 | . . . . 1 Guns 22 | . 8 6 . 8 Cannons 11 | . . 4 . 7 AOE 1 | . . . . 1 Classes Destroyed 8 | 3 2 2 . 1 Worker 3 | 2 1 . . . Tunneler 5 | 5 . . . . Recycler 2 | 1 . 1 . . Watcher 4 | . 1 3 . . Swarmer 8 | . . 2 . 6 Grunt 22 | . 8 5 . 9 Sentry 3 | . . 3 . . Programmer 2 | . . . . 2 Best Kill Streak 6 | 6 5 4 . 6 Combat Bots Only 6 | . 4 3 . 6 Max Kills in Single Turn 2 | 1 2 1 . 1 Gunslinging 1 | . 1 . . . Exploded 1 | . . . . 1 Melee 1 | . . . . 1 Uniques/NPCs Destroyed . | . . . . . Combat | -11 -10 -9 -8 -8 -------- Run | Yrd Mat Mat Mat Gar Hostile Shots Fired 296 | . 67 44 . 185 Missed 78 | . 20 18 . 40 Damage Taken 2504 | . 449 291 . 1764 Core 636 | . 41 42 . 553 Absorbed by Shields 39 | . . . . 39 Ignored by Resistances 748 | . 139 84 . 525 Core Remaining (%) 90 | 100 83 89 . . Volleys Fired 151 | 11 41 30 8 61 Largest 3 | 2 2 2 2 3 Hottest 112 | 60 60 112 112 112 Shots Fired 273 | 22 81 60 9 101 Gun 211 | 22 81 44 7 57 Cannon 44 | . . 16 2 26 Launcher 8 | . . . . 8 Special 10 | . . . . 10 Kinetic 180 | 11 61 44 7 57 Thermal . | . . . . . Explosive 8 | . . . . 8 Electromagnetic 75 | 11 20 16 2 26 Robot Hit Streak 23 | 7 23 8 . 22 Robot Miss Streak 2 | 1 2 2 . 2 Penetration Max . | . . . . . Secondary Targets 4 | . 2 1 . 1 Max Gunslinging Chain 1 | . 1 1 . 1 Shots Hit Robots 187 | 16 62 37 . 72 Core Hits 85 | 9 22 17 . 37 Critical Kills 1 | . 1 . . . Critical Parts Destroyed . | . . . . . Critical Strikes 3 | . 1 1 . 1 Destroy 1 | . 1 . . . Corrupt 2 | . . 1 . 1 Melee Attacks . | . . . . . Impact . | . . . . . Slashing . | . . . . . Piercing . | . . . . . Sneak Attacks . | . . . . . Combat Hostiles . | . . . . . Follow-up Attacks . | . . . . . Damage Inflicted 3148 | 273 811 710 . 1354 Guns 1940 | 205 762 480 . 493 Cannons 678 | . . 230 . 448 Explosions 506 | 68 49 . . 389 Melee . | . . . . . Ramming 24 | . . . . 24 Kinetic 1617 | 74 570 480 . 493 Thermal 326 | 68 49 . . 209 Explosive 180 | . . . . 180 Electromagnetic 1001 | 131 192 230 . 448 Impact . | . . . . . Slashing . | . . . . . Piercing . | . . . . . Highest Corruption 17 | . . 1 . 17 Average Corruption 3 | . . 1 . 5 Corruption Purged . | . . . . . Corruption Blocked . | . . . . . Effects 3 | . . 1 . 2 Message Errors 1 | . . . . 1 Energy Discharges 1 | . . 1 . . Alerts 1 | . . . . 1 Overload Shots . | . . . . . Overflow Damage 5 | . . . . 5 Projectiles . | . . . . . Explosions 5 | . . . . 5 Melee . | . . . . . Knockbacks . | . . . . . Impact . | . . . . . Kinetic . | . . . . . Secondary . | . . . . . Self-Inflicted Damage 197 | . . . . 197 Shots 9 | . . . . 9 Rammed 5 | . . . . 5 Targets Rammed 18 | . . . . 18 Kicked 13 | . . . . 13 Crushed . | . . . . . Highest Temperature 309 | . 90 309 51 300 Average Temperature 82 | . 33 81 28 115 Received Heat Transfer 722 | . 363 84 . 275 Effects 2 | . . . . 2 Interference 2 | . . . . 2 Siege Activations . | . . . . . Robots Corrupted . | . . . . . Combat Hostiles . | . . . . . Parts Fried 3 | . 1 2 . . Impact Corruptions . | . . . . . Robots Melted . | . . . . . Combat Hostiles . | . . . . . Parts Melted . | . . . . . Heat Transferred 350 | 50 100 . . 200 Parts Sabotaged . | . . . . . Parts Stolen . | . . . . . Parts Stripped . | . . . . . Power Chain Reactions 4 | 1 1 . . 2 Alert | -11 -10 -9 -8 -8 ------- Run | Yrd Mat Mat Mat Gar Peak Influence 621 | 40 119 251 11 621 Initial 42 | . 22 42 9 5 Average 136 | 10 84 117 9 312 Maximum Alert Level 2 | . . 1 . 2 Low Security (%) 75 | 100 100 72 100 29 Level 1 15 | . . 27 . 32 Level 2 8 | . . . . 37 Level 3 . | . . . . . Level 4 . | . . . . . Level 5 . | . . . . . High Security . | . . . . . Max Security . | . . . . . Squads Dispatched 2 | . 1 1 . . Investigation 1 | . 1 . . . Extermination . | . . . . . Reinforcement 1 | . . 1 . . Assault . | . . . . . Garrison . | . . . . . Intercept . | . . . . . Searches Triggered . | . . . . . Construction Impeded . | . . . . . Haulers Reinforced . | . . . . . Active Scanning Responses . | . . . . . Cargo Convoy Interrupts . | . . . . . Stealth | -11 -10 -9 -8 -8 --------- Run | Yrd Mat Mat Mat Gar Distress Signals 1 | . . 1 . . Communications Jammed . | . . . . . Distress Signals . | . . . . . Times Spotted 45 | . 10 15 . 20 Peak Tracking Total 7 | . 3 4 . 7 Tactical Retreats 1 | . . . . 1 Traps | -11 -10 -9 -8 -8 ------- Run | Yrd Mat Mat Mat Gar Traps Triggered 7 | . 1 2 . 4 Indirectly . | . . . . . Trap Hack Attempts . | . . . . . Triggered . | . . . . . Disarmed . | . . . . . Reprogrammed . | . . . . . Reused . | . . . . . Traps Extracted . | . . . . . Installed . | . . . . . Triggered . | . . . . . Machines | -11 -10 -9 -8 -8 ---------- Run | Yrd Mat Mat Mat Gar Machines Disabled 7 | . 1 . . 6 Max in Single Turn 2 | . 1 . . 2 Garrison Relay 4 | . . . . 4 Phase Generator 1 | . . . . 1 Machines Repaired . | . . . . . Machines Dismantled . | . . . . . Machines Sabotaged . | . . . . . Overloaded Fab Kills . | . . . . . Hacking | -11 -10 -9 -8 -8 --------- Run | Yrd Mat Mat Mat Gar Machines Accessed 8 | . 3 3 2 . Terminals 7 | . 3 3 1 . Fabricators . | . . . . . Repair Stations . | . . . . . Recycling Units . | . . . . . Scanalyzers . | . . . . . Garrison Access 1 | . . . 1 . Total Hacks 18 | . 8 7 3 . Successful 13 | . 5 6 2 . Failed 5 | . 3 1 1 . Catastrophic 1 | . 1 . . . Database Lockouts . | . . . . . Manual 1 | . 1 . . . Terminals 16 | . 8 7 1 . Fabricators . | . . . . . Repair Stations . | . . . . . Recycling Units . | . . . . . Scanalyzers . | . . . . . Garrison Access 2 | . . . 2 . Terminal Hacks 12 | . 5 6 1 . Record 2 | . . 2 . . Prototype ID Bank 1 | . . 1 . . Alert Level 2 | . 1 1 . . Unreport Threat 2 | . 1 1 . . Locate Traps 2 | . 1 . 1 . Investigation Status 1 | . 1 . . . Zone Layout 2 | . 1 1 . . Fabricator Hacks . | . . . . . Repair Station Hacks . | . . . . . Recycling Unit Hacks . | . . . . . Scanalyzer . | . . . . . Garrison Access Hacks 1 | . . . 1 . Unlock Access 1 | . . . 1 . Unauthorized Hacks . | . . . . . Terminals . | . . . . . Fabricators . | . . . . . Repair Stations . | . . . . . Recycling Units . | . . . . . Scanalyzers . | . . . . . Garrison Access . | . . . . . Data Cores Recovered . | . . . . . Used . | . . . . . Hacking Detections 7 | . 3 2 2 . Full Trace Events 1 | . 1 . . . Feedback Events . | . . . . . Feedback Blocked . | . . . . . Robot Schematics Acquired . | . . . . . Robots Built . | . . . . . Authchips . | . . . . . Time . | . . . . . Total Robot Build Rating . | . . . . . Part Schematics Acquired . | . . . . . Parts Built . | . . . . . Authchips . | . . . . . Time . | . . . . . Total Part Build Rating . | . . . . . Parts Repaired . | . . . . . Time . | . . . . . Parts Recycled . | . . . . . Recycled Matter . | . . . . . Retrieved Matter . | . . . . . Retrieved Components . | . . . . . Parts Scanalyzed . | . . . . . Part Schematics Acquired . | . . . . . Parts Damaged . | . . . . . Bothacking | -11 -10 -9 -8 -8 ------------ Run | Yrd Mat Mat Mat Gar Used RIF Installer . | . . . . . Robots Hacked 1 | . . . . 1 Non-combat . | . . . . . Combat 1 | . . . . 1 Robot Hacks Applied 1 | . . . . 1 parse_system 1 | . . . . 1 Relay Couplers Released 18 | . . . . 18 Machine Destruction 18 | . . . . 18 Fabnet Peak Effective % . | . . . . . Robots Rewired . | . . . . . Allies Hacked . | . . . . . Hacks Repelled . | . . . . . Allies | -11 -10 -9 -8 -8 -------- Run | Yrd Mat Mat Mat Gar Total Allies . | . . . . . Largest Group . | . . . . . Highest-Rated Group . | . . . . . Highest-Rated Ally . | . . . . . Total Orders . | . . . . . Ally Attacks . | . . . . . Total Damage . | . . . . . Kills . | . . . . . Allies Corrupted . | . . . . . Allies Melted . | . . . . . Intel | -11 -10 -9 -8 -8 ------- Run | Yrd Mat Mat Mat Gar Robot Analysis Total . | . . . . . Derelict Logs Recovered . | . . . . . Drone Launches . | . . . . . Drone Recoveries . | . . . . . Exploration | -11 -10 -9 -8 -8 ------------- Run | Yrd Mat Mat Mat Gar Turns Passed 2148 | 124 737 572 201 514 Spaces Moved 851 | 69 314 260 74 134 Core 22 | 20 . . . 2 Treads 339 | . . 211 74 54 Legs 441 | 49 314 . . 78 Wheels . | . . . . . Hover . | . . . . . Flight 49 | . . 49 . . Fastest Speed 50 | 50 120 160 160 120 Average Speed 167 | 99 144 170 228 220 Slowest Speed 400 | 120 190 272 240 400 Overloaded Moves . | . . . . . Propulsion Burnouts . | . . . . . Robots Hopped . | . . . . . Cave-ins Triggered . | . . . . . Exploration Rate (%) 27 | 5 53 40 7 31 Regions Visited 4 Branch Regions . Pre-discovered Areas . | . . . . . Known Exits Taken 2 | . . 1 1 . Unknown Exits Taken 2 | 1 1 . . . Scrap Searched . | . . . . . Spaces Dug . | . . . . . Terrain Destroyed 95 | 1 2 . . 92 Melee . | . . . . . Projectile . | . . . . . AOE 95 | 1 2 . . 92 Terrain Rammed . | . . . . . Walls Destroyed . | . . . . . Machines Disabled . | . . . . . Actions | -11 -10 -9 -8 -8 --------- Run | Yrd Mat Mat Mat Gar Total 1291 | 99 522 327 96 247 Wait 172 | 3 146 10 7 6 Move 847 | 68 313 259 74 133 Hop . | . . . . . Pick Up 37 | 10 7 10 3 7 Fast Attach 6 | 5 . 1 . . Attach 16 | 2 2 4 2 6 Detach . | . . . . . Swap 19 | . 6 9 2 2 Drop 12 | . 7 4 . 1 Fire 151 | 11 41 30 8 61 Melee . | . . . . . Ram 5 | . . . . 5 Kick 13 | . . . . 13 Crush . | . . . . . Escape Stasis 13 | . . . . 13 Rewire . | . . . . . Trap . | . . . . . Miscellaneous . | . . . . . Route ------- -11/Scrapyard -10/Materials -9/Materials (discovered 3 exits: *Mat / *Min x2) -8/Materials -8/Garrison (discovered 1 exit: *Mat) History --------- Turn | Location | Event 15 | -11/Scrapyard | Discovered new exit (range 14) 125 | -11/Scrapyard | Entered Materials 313 | -10/Materials | Build established: Mutant 829 | -10/Materials | Discovered new exit (range 18) 862 | -10/Materials | Entered another Materials area 862 | -9/Materials | Evolved 2 slots: Power x1, Utility x1 1208 | -9/Materials | Discovered new exit (range 14) 1281 | -9/Materials | Identified exit to Mines 1313 | -9/Materials | Discovered exit to Mines (range 13) 1410 | -9/Materials | Discovered new exit (range 13) 1433 | -9/Materials | Identified exit to Materials 1434 | -9/Materials | Entered another Materials area 1434 | -8/Materials | Evolved 2 slots: Utility x1, Weapon x1 1635 | -8/Materials | Identified exit to Garrison 1635 | -8/Materials | Entered Garrison 1785 | -8/Garrison | Triggered checkpoint 1822 | -8/Garrison | Triggered checkpoint 1872 | -8/Garrison | Triggered checkpoint 1956 | -8/Garrison | Phase Generator disabled 1962 | -8/Garrison | Discovered new exit (range 12) 1981 | -8/Garrison | Identified exit to Materials 1983 | -8/Garrison | Attempted to access garrison exit controls, blocked by remote lockdown 2015 | -8/Garrison | Garrison Relay disabled 2023 | -8/Garrison | Garrison Relay disabled 2025 | -8/Garrison | Garrison Relay disabled 2090 | -8/Garrison | Lost 6 parts (1p1n4w) 2110 | -8/Garrison | Core integrity fell below 50% 2127 | -8/Garrison | System corruption reached 10% 2141 | -8/Garrison | Core integrity fell below 20% 2149 | -8/Garrison | Destroyed by P-60 Hacker with Shock Rifle Last Messages --------------- 02115_ Kicked P-60 Hacker. 02118_ Aluminum Leg destroyed. 02118_ Kicked P-60 Hacker. 02121_ Kicked P-60 Hacker out of the way. 02122_ P-60 Hacker resets P-60 Hacker, system corruption cleaned. 02124_ Aluminum Leg destroyed. 02124_ Slammed into P-60 Hacker. [Achievement: System Compromised] 02127_ P-60 Hacker resets P-60 Hacker, system corruption cleaned. 02129_ Remote Datajack destroyed. 02132_ Slammed into P-60 Hacker. 02132_ Imp. Targeting Computer broken. 02132_ Destabilizing: Short circuit. 02139_ Slammed into P-60 Hacker. 02140_ System corrupted: IFF burst signal emitted. 02141_ Imp. Signal Interpreter destroyed. 02142_ Slammed into P-60 Hacker. Map ----- +----------------------------------------------------+ | ???????????## # ######## ??????????????? | | ??????????## ##???# #?????????????????? | | ??????????# # #???# #?????????????????? | | ?????????### ##??# #?????????????????? | | ?????????# #??# #?????????????????? | | ?????????# ##??# ###???????????????? | | ?????????## ###### #???????????????? | | ??????????# < #???????????????? | | ??????????# # ## #???????????????? | | ??????????# # ## #######???????????????? | | ??????????# ## #?????????????????????? | | ??????????## ### #?????????????????????? | | ???????????### ##?# #?????????????????????? | | ????????????### # ###?## ##????????????????????? | | ??????????????########### ####?????????????????? | | ????????????????????## ## #?????????????????? | | ????????????????????## [ ##????????????????? | | ????????????????????# ! #????????????????? | | ????????????????????# #????????????????? | | ????????????????????# #????????????????? | | ????????????????????# "#????????????????? | | ????????????????????# "#????????????????? | | ????????????????????## ^ " ##????????????????? | | ?????????????????????# "" #?????????????????? | | ?????????????????????# # p # #?????????????????? | | ?????????????????????# @ p #?????????????????? | | ?????????????????????# # "" "# #?????????????????? | | ?????????????????????###"""""###?????????????????? | | ???????????????????????#######???????????????????? | | ?????????????????????????????????????????????????? | | ?????????????????????????????????????????????????? | | ?????????????????????????????????????????????????? | | ?????????????????????????????????????????????????? | | | | | | | | | | | | | | | | | | | | | | | | | | | | | | | | | | | +----------------------------------------------------+ Best States ------------- Heat Dissipation 31 Energy Generation 17 Energy Capacity 415 Matter Stores 300 Matter Capacity 300 Sight Range 18 Terrain Scan Range 16 Terrain Scan Density 10 Resistance: KI 20 Resistance: TH 20 Resistance: EX 20 Resistance: EM 20 Resistance: I 20 Resistance: S 20 Resistance: P 20 Evasion (%) 55 Targeting Accuracy 6 Recoil Reduction 2 Offensive Hacking 10 Item Schematics ----------------- None Robot Schematics ------------------ None Fabricated ------------ Nothing Alien Tech Used ----------------- None Achievements -------------- Everything Is Under Control System Compromised Challenges ------------ None Game ------ Seed ResetGravityWell Manual? 0 Play Time 00:35:48 Cumulative 4.4 hours Start 2024.03.30 @ 01:53:07 End 2024.03.30 @ 02:28:25 Sessions 1 Manual Loads 0 Difficulty Adventurer Special Mode None Game No. 6 Rogue 0 Adventurer 6 Explorer 0 Win Type - Total 0 Types 0/0/0/0/0/0/0/0/0 Lore% 3 Gallery% 9 Achievement% 11 Wizard Run 0 Options --------- Layout 1 ASCII 0 Keyboard 0 Movement Mouse Keybinds 0 Fullscreen 2 Font 24/Smallcaps Map View 50x35 Zoom Use 0% Tactical HUD 1 Map Filters NONE Filters NONE Steam 1 RUN: bb76d1e3-e49a-4589-a9ff-79070c3e6e32